[Event "44th Chess Olympiad Women 2022"]
[Site "Chennai"]
[Date "2022.08.08"]
[Round "10.55"]
[White "Park, Sunwoo"]
[Black "Tsai, Sophie Yi-Hsuan"]
[Result "1-0"]
[WhiteElo "1773"]
[BlackElo "1131"]
[Annotator "NA RC"]
[PlyCount "139"]
[EventDate "2022.??.??"]
[TimeControl "60"]

1. e4 {[%emt 0:00:02]} c5 {[%emt 0:00:01]} 2. Nf3 {[%emt 0:00:06]} g6 {[%emt 0:
00:00]} 3. d4 {[%emt 0:00:06]} cxd4 {[%emt 0:00:05]} 4. Nxd4 {[%emt 0:00:07]}
Bg7 {[%emt 0:00:05]} 5. c4 {[%emt 0:01:40]} Nc6 {[%emt 0:00:03]} 6. Be3 {
[%emt 0:00:07]} Nf6 {[%emt 0:00:07]} 7. Nc3 {[%emt 0:00:13]} Ng4 {[%emt 0:00:
00]} 8. Qxg4 {[%emt 0:05:30]} Nxd4 {[%emt 0:00:03]} 9. Qd1 {[%emt 0:02:43]} Ne6
{[%emt 0:01:18]} 10. Be2 {[%emt 0:05:36]} Qa5 {[%emt 0:00:36]} 11. Bd2 {
[%emt 0:03:46]} d6 {[%emt 0:05:57]} 12. O-O {[%emt 0:00:35]} O-O {[%emt 0:00:
00]} 13. Nd5 {[%emt 0:03:53]} Qd8 {[%emt 0:00:03]} 14. Rb1 {[%emt 0:03:48]} Nd4
{[%emt 0:10:55]} 15. Bg5 {[%emt 0:07:33]} Nxe2+ {[%emt 0:03:09]} 16. Qxe2 {
[%emt 0:00:16]} f6 {[%emt 0:00:46]} 17. Bd2 {[%emt 0:04:41]} b6 {[%emt 0:03:46]
} 18. f4 {[%emt 0:02:55]} e6 {[%emt 0:03:40]} 19. Qd3 {[%emt 0:08:04]} Rb8 {
[%emt 0:15:39]} 20. Nc3 {[%emt 0:03:00]} a6 {[%emt 0:02:52]} 21. Rbd1 {[%emt 0:
00:00]} b5 {[%emt 0:04:26]} 22. cxb5 {[%emt 0:05:26]} axb5 {[%emt 0:00:02]} 23.
b4 {[%emt 0:02:11]} Qc7 {[%emt 0:03:03]} 24. Rc1 {[%emt 0:01:51]} Qd8 {[%emt 0:
00:00]} 25. Be3 {[%emt 0:00:48]} d5 {[%emt 0:08:54]} 26. exd5 {[%emt 0:02:32]}
exd5 {[%emt 0:00:02]} 27. Qxd5+ {[%emt 0:00:47]} Qxd5 {[%emt 0:00:06]} 28. Nxd5
{[%emt 0:00:10]} Be6 {[%emt 0:01:04]} 29. Rc5 {[%emt 0:05:04]} Bxd5 {[%emt 0:
00:00]} 30. Rxd5 {[%emt 0:00:08]} Rfe8 {[%emt 0:01:12]} 31. Bc5 {[%emt 0:01:09]
} Re2 {[%emt 0:01:17]} 32. Rfd1 {[%emt 0:03:42]} Ree8 {[%emt 0:07:49]} 33. Rd7
{[%emt 0:01:30]} Ra8 {[%emt 0:00:35]} 34. R1d2 {[%emt 0:03:29]} f5 {[%emt 0:00:
00]} 35. Rb7 {[%emt 0:05:25]} Rab8 {[%emt 0:13:18]} 36. Rdd7 {[%emt 0:02:07]}
Rxb7 {[%emt 0:00:07]} 37. Rxb7 {[%emt 0:00:05]} Re2 {[%emt 0:00:39]} 38. Rxb5 {
[%emt 0:03:40]} Rxa2 {[%emt 0:00:08]} 39. Rb8+ {[%emt 0:01:35]} Kf7 {[%emt 0:
00:00]} 40. Rb7+ {[%emt 0:00:36]} Kg8 {[%emt 0:00:02]} 41. h3 {[%emt 0:30:48]}
Rc2 {[%emt 0:11:23]} 42. Kh2 {[%emt 0:00:00]} h6 {[%emt 0:01:02]} 43. Rb6 {
[%emt 0:00:00]} Kf7 {[%emt 0:00:38]} 44. Rb7+ {[%emt 0:00:00]} Kg8 {[%emt 0:00:
00]} 45. Bd6 {[%emt 0:00:00]} Bc3 {[%emt 0:06:16]} 46. Rc7 {[%emt 0:00:00]}
Bxb4 {[%emt 0:00:10]} 47. Rxc2 {[%emt 0:00:00]} Bxd6 {[%emt 0:00:05]} 48. g3 {
[%emt 0:00:00]} Kf7 {[%emt 0:02:37]} 49. Kg2 {[%emt 0:00:00]} g5 {[%emt 0:00:
00]} 50. fxg5 {[%emt 0:00:00]} hxg5 {[%emt 0:00:02]} 51. Kf3 {[%emt 0:00:00]}
Be7 {[%emt 0:06:38]} 52. Rc6 {[%emt 0:00:00]} Bf6 {[%emt 0:00:11]} 53. Ra6 {
[%emt 0:00:00]} Bd4 {[%emt 0:02:03]} 54. g4 {[%emt 0:00:48]} fxg4+ {[%emt 0:00:
00]} 55. hxg4 {[%emt 0:00:07]} Be5 {[%emt 0:01:39]} 56. Ke4 {[%emt 0:00:10]}
Bf4 {[%emt 0:00:15]} 57. Kf5 {[%emt 0:00:03]} Be3 {[%emt 0:01:02]} 58. Rf6+ {
[%emt 0:01:04]} Kg7 {[%emt 0:00:45]} 59. Re6 {[%emt 0:00:28]} Bd2 {[%emt 0:00:
00]} 60. Re7+ {[%emt 0:00:05]} Kf8 {[%emt 0:00:50]} 61. Rd7 {[%emt 0:00:28]}
Bc1 {[%emt 0:01:08]} 62. Kf6 {[%emt 0:00:18]} Ke8 {[%emt 0:00:23]} 63. Rf7 {
[%emt 0:01:51]} Bf4 {[%emt 0:00:49]} 64. Kg6 {[%emt 0:00:09]} Bc1 {[%emt 0:00:
00]} 65. Rf5 {[%emt 0:01:32]} Ke7 {[%emt 0:01:01]} 66. Rxg5 {[%emt 0:01:34]}
Bxg5 {[%emt 0:00:08]} 67. Kxg5 {[%emt 0:00:03]} Kf7 {[%emt 0:00:31]} 68. Kh6 {
[%emt 0:00:19]} Kg8 {[%emt 0:00:18]} 69. g5 {[%emt 0:00:05]} Kh8 {[%emt 0:00:
00]} 70. g6 {[%emt 0:00:03]} 1-0

[Event "44th Chess Olympiad Women 2022"]
[Site "Chennai"]
[Date "2022.08.08"]
[Round "10.55"]
[White "Shih, Ching-An"]
[Black "Kang, Sohyun"]
[Result "1/2-1/2"]
[WhiteElo "1582"]
[BlackElo "1593"]
[Annotator "NA RC"]
[PlyCount "73"]
[EventDate "2022.??.??"]
[TimeControl "60"]

1. d4 {[%emt 0:00:08]} d5 {[%emt 0:00:13]} 2. Nf3 {[%emt 0:00:09]} c6 {[%emt 0:
00:00]} 3. e3 {[%emt 0:05:58]} Nf6 {[%emt 0:01:54]} 4. c4 {[%emt 0:00:13]} Bf5
{[%emt 0:00:40]} 5. Nc3 {[%emt 0:00:36]} e6 {[%emt 0:00:54]} 6. Be2 {[%emt 0:
00:00]} Bd6 {[%emt 0:02:44]} 7. O-O {[%emt 0:00:25]} Nbd7 {[%emt 0:02:01]} 8.
b3 {[%emt 0:04:17]} O-O {[%emt 0:01:52]} 9. Bb2 {[%emt 0:00:18]} Qb8 {[%emt 0:
00:00]} 10. h3 {[%emt 0:00:53]} a6 {[%emt 0:05:07]} 11. c5 {[%emt 0:00:23]} Bc7
{[%emt 0:00:35]} 12. Rc1 {[%emt 0:00:50]} Rd8 {[%emt 0:04:11]} 13. Na4 {
[%emt 0:00:49]} Bg6 {[%emt 0:02:27]} 14. Nh4 {[%emt 0:00:57]} Ne4 {[%emt 0:00:
00]} 15. Nxg6 {[%emt 0:00:27]} hxg6 {[%emt 0:00:05]} 16. Bd3 {[%emt 0:01:27]}
Ndf6 {[%emt 0:00:36]} 17. Nc3 {[%emt 0:09:15]} e5 {[%emt 0:04:03]} 18. Nxe4 {
[%emt 0:00:24]} dxe4 {[%emt 0:00:35]} 19. Bc4 {[%emt 0:00:12]} Nh5 {[%emt 0:00:
00]} 20. Qg4 {[%emt 0:01:04]} Kf8 {[%emt 0:09:54]} 21. Qxe4 {[%emt 0:03:36]}
Re8 {[%emt 0:07:49]} 22. Qf3 {[%emt 0:05:19]} Nf6 {[%emt 0:03:20]} 23. dxe5 {
[%emt 0:01:20]} Bxe5 {[%emt 0:00:09]} 24. Bxe5 {[%emt 0:00:05]} Rxe5 {[%emt 0:
00:00]} 25. Bd3 {[%emt 0:01:11]} Qd8 {[%emt 0:01:49]} 26. Rfd1 {[%emt 0:00:16]}
Qe7 {[%emt 0:00:57]} 27. b4 {[%emt 0:03:51]} a5 {[%emt 0:02:10]} 28. a3 {
[%emt 0:00:13]} Rd5 {[%emt 0:07:30]} 29. Bc2 {[%emt 0:02:22]} axb4 {[%emt 0:00:
00]} 30. axb4 {[%emt 0:00:47]} Ra3 {[%emt 0:02:25]} 31. Ra1 {[%emt 0:09:09]}
Rxd1+ {[%emt 0:11:07]} 32. Qxd1 {[%emt 0:01:01]} Rc3 {[%emt 0:03:13]} 33. Ra8+
{[%emt 0:02:40]} Ne8 {[%emt 0:00:13]} 34. Qd2 {[%emt 0:00:41]} Rc4 {[%emt 0:00:
00]} 35. Bb3 {[%emt 0:00:44]} Re4 {[%emt 0:00:37]} 36. Bc2 {[%emt 0:13:04]} Re5
{[%emt 0:02:43]} 37. e4 {[%emt 0:00:12]} 1/2-1/2

[Event "44th Chess Olympiad Women 2022"]
[Site "Chennai"]
[Date "2022.08.08"]
[Round "10.56"]
[White "Adhikari, Kritisara"]
[Black "Van Wyk, Keisha C"]
[Result "1/2-1/2"]
[WhiteElo "1552"]
[BlackElo "1237"]
[Annotator "NA RC"]
[PlyCount "95"]
[EventDate "2022.??.??"]
[TimeControl "60"]

1. d4 {[%emt 0:00:04]} Nf6 {[%emt 0:00:37]} 2. Bf4 {[%emt 0:00:21]} g6 {
[%emt 0:00:25]} 3. e3 {[%emt 0:00:24]} Bg7 {[%emt 0:00:28]} 4. Nd2 {[%emt 0:00:
00]} O-O {[%emt 0:01:03]} 5. Ngf3 {[%emt 0:00:38]} d6 {[%emt 0:03:22]} 6. Be2 {
[%emt 0:02:39]} c5 {[%emt 0:01:47]} 7. c3 {[%emt 0:00:08]} Nc6 {[%emt 0:00:39]}
8. h3 {[%emt 0:01:11]} cxd4 {[%emt 0:01:32]} 9. exd4 {[%emt 0:00:33]} Nd5 {
[%emt 0:03:23]} 10. Bh2 {[%emt 0:04:46]} e5 {[%emt 0:03:49]} 11. dxe5 {[%emt 0:
00:00]} dxe5 {[%emt 0:03:10]} 12. O-O {[%emt 0:00:23]} a6 {[%emt 0:02:25]} 13.
a4 {[%emt 0:03:08]} Re8 {[%emt 0:03:56]} 14. Ne4 {[%emt 0:04:14]} Be6 {[%emt 0:
00:00]} 15. Nc5 {[%emt 0:04:01]} Nf4 {[%emt 0:11:53]} 16. Bxf4 {[%emt 0:02:04]}
exf4 {[%emt 0:01:05]} 17. Qxd8 {[%emt 0:01:06]} Nxd8 {[%emt 0:01:33]} 18. Nxe6
{[%emt 0:04:11]} Nxe6 {[%emt 0:02:08]} 19. Rad1 {[%emt 0:01:23]} Rab8 {[%emt 0:
00:00]} 20. Rfe1 {[%emt 0:02:33]} Re7 {[%emt 0:04:43]} 21. Bc4 {[%emt 0:02:27]}
Rbe8 {[%emt 0:04:18]} 22. Kf1 {[%emt 0:05:27]} Bf6 {[%emt 0:03:01]} 23. Bxe6 {
[%emt 0:04:48]} fxe6 {[%emt 0:03:15]} 24. Rd6 {[%emt 0:04:15]} Kf7 {[%emt 0:00:
00]} 25. Red1 {[%emt 0:02:23]} e5 {[%emt 0:03:41]} 26. Rd7 {[%emt 0:04:03]} e4
{[%emt 0:03:01]} 27. Ne1 {[%emt 0:03:16]} g5 {[%emt 0:05:22]} 28. Nc2 {[%emt 0:
00:00]} a5 {[%emt 0:01:55]} 29. Ke2 {[%emt 0:02:00]} Rxd7 {[%emt 0:01:37]} 30.
Rxd7+ {[%emt 0:00:18]} Re7 {[%emt 0:00:25]} 31. Rd5 {[%emt 0:01:27]} b6 {
[%emt 0:00:43]} 32. Rd6 {[%emt 0:02:25]} Rb7 {[%emt 0:00:39]} 33. Na3 {[%emt 0:
00:00]} h5 {[%emt 0:03:58]} 34. Nb5 {[%emt 0:01:52]} g4 {[%emt 0:02:38]} 35.
hxg4 {[%emt 0:01:01]} hxg4 {[%emt 0:00:42]} 36. Rc6 {[%emt 0:02:57]} Kg6 {
[%emt 0:05:35]} 37. Re6 {[%emt 0:10:20]} f3+ {[%emt 0:02:38]} 38. gxf3 {
[%emt 0:00:43]} exf3+ {[%emt 0:00:10]} 39. Ke3 {[%emt 0:04:54]} Re7 {[%emt 0:
00:00]} 40. Rxe7 {[%emt 0:03:14]} Bxe7 {[%emt 0:00:06]} 41. Kf4 {[%emt 0:30:03]
} Kh5 {[%emt 0:30:28]} 42. Nd4 {[%emt 0:01:13]} Bc5 {[%emt 0:01:53]} 43. Ke4 {
[%emt 0:02:39]} Kh4 {[%emt 0:01:51]} 44. Nxf3+ {[%emt 0:00:00]} gxf3 {[%emt 0:
00:00]} 45. Kxf3 {[%emt 0:00:00]} Kg5 {[%emt 0:00:00]} 46. Ke2 {[%emt 0:00:00]}
Kf4 {[%emt 0:00:00]} 47. f3 {[%emt 0:00:00]} Ke5 {[%emt 0:00:00]} 48. Kd3 {
[%emt 0:00:00]} 1/2-1/2

[Event "44th Chess Olympiad Women 2022"]
[Site "Chennai"]
[Date "2022.08.08"]
[Round "10.56"]
[White "Beukes Jamie-Nicole"]
[Black "Dhimal, Shanti"]
[Result "1-0"]
[WhiteElo "1231"]
[BlackElo "1499"]
[Annotator "NA RC"]
[PlyCount "73"]
[EventDate "2022.??.??"]
[TimeControl "60"]

1. e4 {[%emt 0:00:05]} e5 {[%emt 0:00:12]} 2. Nf3 {[%emt 0:00:09]} Nc6 {
[%emt 0:00:18]} 3. Bc4 {[%emt 0:00:15]} Bc5 {[%emt 0:00:30]} 4. c3 {[%emt 0:00:
00]} Nf6 {[%emt 0:01:06]} 5. d4 {[%emt 0:00:28]} exd4 {[%emt 0:00:41]} 6. cxd4
{[%emt 0:00:10]} Bb4+ {[%emt 0:02:42]} 7. Nc3 {[%emt 0:00:27]} Nxe4 {[%emt 0:
00:00]} 8. O-O {[%emt 0:00:21]} Nxc3 {[%emt 0:03:49]} 9. bxc3 {[%emt 0:00:47]}
Be7 {[%emt 0:00:33]} 10. Bd5 {[%emt 0:02:44]} O-O {[%emt 0:00:38]} 11. Re1 {
[%emt 0:04:00]} d6 {[%emt 0:01:42]} 12. Bf4 {[%emt 0:08:06]} Bg4 {[%emt 0:00:
00]} 13. Re3 {[%emt 0:02:47]} Bf6 {[%emt 0:00:29]} 14. Qe2 {[%emt 0:03:32]} Na5
{[%emt 0:07:51]} 15. Re1 {[%emt 0:03:01]} h6 {[%emt 0:04:30]} 16. Qd3 {[%emt 0:
00:00]} c6 {[%emt 0:03:00]} 17. h3 {[%emt 0:12:46]} Bh5 {[%emt 0:06:39]} 18.
Be4 {[%emt 0:07:14]} d5 {[%emt 0:01:23]} 19. Bh7+ {[%emt 0:04:54]} Kh8 {
[%emt 0:00:31]} 20. g4 {[%emt 0:01:37]} Bg6 {[%emt 0:05:19]} 21. Bxg6 {[%emt 0:
00:00]} fxg6 {[%emt 0:00:23]} 22. Qxg6 {[%emt 0:02:05]} Nc4 {[%emt 0:03:37]}
23. Re6 {[%emt 0:02:03]} Qd7 {[%emt 0:04:56]} 24. Bxh6 {[%emt 0:06:01]} gxh6 {
[%emt 0:05:34]} 25. Rxf6 {[%emt 0:02:10]} Qg7 {[%emt 0:02:44]} 26. Qxg7+ {
[%emt 0:07:43]} Kxg7 {[%emt 0:00:17]} 27. Rxf8 {[%emt 0:00:24]} Rxf8 {[%emt 0:
00:00]} 28. Re7+ {[%emt 0:00:56]} Rf7 {[%emt 0:00:51]} 29. Rxf7+ {[%emt 0:00:
00]} Kxf7 {[%emt 0:00:12]} 30. Ne5+ {[%emt 0:00:13]} Kf6 {[%emt 0:02:45]} 31.
Nxc4 {[%emt 0:01:28]} dxc4 {[%emt 0:00:13]} 32. f4 {[%emt 0:01:02]} b5 {
[%emt 0:01:04]} 33. Kf2 {[%emt 0:01:48]} a5 {[%emt 0:00:50]} 34. a3 {[%emt 0:
00:00]} b4 {[%emt 0:01:00]} 35. cxb4 {[%emt 0:00:22]} axb4 {[%emt 0:01:40]} 36.
axb4 {[%emt 0:00:07]} Ke6 {[%emt 0:00:38]} 37. Ke3 {[%emt 0:00:41]} 1-0

[Event "44th Chess Olympiad Women 2022"]
[Site "Chennai"]
[Date "2022.08.08"]
[Round "10.56"]
[White "Nepando, Jolly"]
[Black "Kapali, Binita"]
[Result "1/2-1/2"]
[WhiteElo "1389"]
[BlackElo "1511"]
[Annotator "NA RC"]
[PlyCount "92"]
[EventDate "2022.??.??"]
[TimeControl "60"]

1. e4 {[%emt 0:00:07]} e5 {[%emt 0:00:08]} 2. Nf3 {[%emt 0:00:31]} Nc6 {
[%emt 0:00:17]} 3. Bc4 {[%emt 0:00:23]} Bc5 {[%emt 0:00:31]} 4. O-O {[%emt 0:
00:00]} d6 {[%emt 0:02:40]} 5. Nc3 {[%emt 0:01:01]} a6 {[%emt 0:01:17]} 6. a3 {
[%emt 0:01:05]} Nf6 {[%emt 0:00:51]} 7. d3 {[%emt 0:00:49]} h6 {[%emt 0:00:41]}
8. h3 {[%emt 0:02:18]} O-O {[%emt 0:00:18]} 9. Re1 {[%emt 0:00:19]} Be6 {
[%emt 0:00:20]} 10. Ba2 {[%emt 0:01:31]} Ne7 {[%emt 0:05:44]} 11. Be3 {[%emt 0:
00:00]} Nd7 {[%emt 0:03:32]} 12. Na4 {[%emt 0:02:59]} Ba7 {[%emt 0:01:34]} 13.
Bxa7 {[%emt 0:06:08]} Rxa7 {[%emt 0:02:17]} 14. Nc3 {[%emt 0:02:41]} Ng6 {
[%emt 0:01:38]} 15. Ne2 {[%emt 0:01:33]} Nh4 {[%emt 0:03:44]} 16. Ng3 {[%emt 0:
00:00]} Qe7 {[%emt 0:07:04]} 17. c3 {[%emt 0:03:49]} Bxa2 {[%emt 0:02:04]} 18.
Rxa2 {[%emt 0:01:21]} f5 {[%emt 0:01:55]} 19. Nxh4 {[%emt 0:00:30]} Qxh4 {
[%emt 0:02:38]} 20. Nxf5 {[%emt 0:01:09]} Qf6 {[%emt 0:01:14]} 21. Rf1 {
[%emt 0:03:55]} Kh7 {[%emt 0:02:05]} 22. d4 {[%emt 0:13:06]} exd4 {[%emt 0:00:
00]} 23. Qxd4 {[%emt 0:00:41]} Raa8 {[%emt 0:00:42]} 24. Qxf6 {[%emt 0:06:51]}
Nxf6 {[%emt 0:01:14]} 25. Re1 {[%emt 0:01:41]} Nxe4 {[%emt 0:02:45]} 26. Rxe4 {
[%emt 0:07:41]} Rxf5 {[%emt 0:00:10]} 27. Re7 {[%emt 0:00:22]} Rc8 {[%emt 0:00:
00]} 28. b4 {[%emt 0:04:44]} Kg8 {[%emt 0:02:27]} 29. Rae2 {[%emt 0:03:14]} Rf7
{[%emt 0:00:40]} 30. Re8+ {[%emt 0:03:25]} Rf8 {[%emt 0:02:00]} 31. R8e7 {
[%emt 0:00:16]} Rf7 {[%emt 0:00:37]} 32. Re8+ {[%emt 0:00:16]} Rf8 {[%emt 0:00:
00]} 33. R8e7 {[%emt 0:00:45]} Rfd8 {[%emt 0:02:25]} 34. R2e3 {[%emt 0:02:01]}
Kf8 {[%emt 0:08:13]} 35. R7e4 {[%emt 0:01:41]} Rd7 {[%emt 0:01:11]} 36. g4 {
[%emt 0:05:44]} c5 {[%emt 0:03:57]} 37. Rd3 {[%emt 0:07:38]} b6 {[%emt 0:03:27]
} 38. Re6 {[%emt 0:01:33]} Rcd8 {[%emt 0:00:56]} 39. Rf3+ {[%emt 0:00:58]} Rf7
{[%emt 0:00:21]} 40. Rd3 {[%emt 0:00:23]} Rfd7 {[%emt 0:01:37]} 41. Rf3+ {
[%emt 0:30:39]} Rf7 {[%emt 0:32:00]} 42. Rd3 {[%emt 0:00:45]} Rfd7 {[%emt 0:00:
00]} 43. Rf3+ {[%emt 0:08:42]} Rf7 {[%emt 0:01:28]} 44. Rd3 {[%emt 0:00:04]}
Rfd7 {[%emt 0:09:36]} 45. Rf6+ gxf6 46. Rf3 {[%emt 0:00:06]} Kf7 {[%emt 0:00:
00]} 1/2-1/2

[Event "44th Chess Olympiad Women 2022"]
[Site "Chennai"]
[Date "2022.08.08"]
[Round "10.56"]
[White "Neupane, Anisha"]
[Black "Mentile, Lishen"]
[Result "1-0"]
[WhiteElo "1488"]
[BlackElo "1486"]
[Annotator "NA RC"]
[PlyCount "76"]
[EventDate "2022.??.??"]
[TimeControl "60"]

1. e4 {[%emt 0:00:04]} d5 {[%emt 0:00:13]} 2. exd5 {[%emt 0:01:26]} Qxd5 {
[%emt 0:00:11]} 3. Nc3 {[%emt 0:00:27]} Qd6 {[%emt 0:00:59]} 4. g3 {[%emt 0:00:
00]} Nf6 {[%emt 0:02:29]} 5. Bg2 {[%emt 0:00:54]} c6 {[%emt 0:02:49]} 6. Nf3 {
[%emt 0:03:49]} Bg4 {[%emt 0:01:42]} 7. O-O {[%emt 0:01:14]} e6 {[%emt 0:01:54]
} 8. d3 {[%emt 0:01:19]} Be7 {[%emt 0:02:56]} 9. Bf4 {[%emt 0:01:44]} Qd8 {
[%emt 0:04:25]} 10. Re1 {[%emt 0:01:21]} Nbd7 {[%emt 0:01:57]} 11. Qd2 {
[%emt 0:03:50]} O-O {[%emt 0:04:44]} 12. h3 {[%emt 0:03:59]} Bh5 {[%emt 0:00:
00]} 13. g4 {[%emt 0:04:44]} Bg6 {[%emt 0:01:54]} 14. Nh4 {[%emt 0:01:11]} Nxg4
{[%emt 0:08:14]} 15. Nxg6 {[%emt 0:02:01]} hxg6 {[%emt 0:05:23]} 16. hxg4 {
[%emt 0:00:18]} Bh4 {[%emt 0:06:10]} 17. Qe3 {[%emt 0:05:45]} Qb6 {[%emt 0:00:
00]} 18. Qxb6 {[%emt 0:03:07]} axb6 {[%emt 0:00:55]} 19. Ne4 {[%emt 0:05:41]}
Ra4 {[%emt 0:12:56]} 20. b3 {[%emt 0:02:37]} Ra5 {[%emt 0:03:25]} 21. c3 {
[%emt 0:10:39]} Nf6 {[%emt 0:08:47]} 22. Nxf6+ {[%emt 0:08:27]} Bxf6 {[%emt 0:
00:00]} 23. d4 {[%emt 0:00:33]} c5 {[%emt 0:04:45]} 24. Be5 {[%emt 0:01:08]}
Bxe5 {[%emt 0:06:33]} 25. Rxe5 {[%emt 0:03:06]} Rd8 {[%emt 0:00:58]} 26. dxc5 {
[%emt 0:01:05]} bxc5 {[%emt 0:01:31]} 27. Bxb7 {[%emt 0:01:34]} Ra7 {[%emt 0:
00:00]} 28. Bf3 {[%emt 0:00:57]} Rd3 {[%emt 0:00:19]} 29. Re3 {[%emt 0:00:25]}
Rad7 {[%emt 0:01:03]} 30. c4 {[%emt 0:03:05]} Rxe3 {[%emt 0:00:40]} 31. fxe3 {
[%emt 0:00:09]} Rd3 {[%emt 0:00:03]} 32. Kf2 {[%emt 0:00:39]} Rd2+ {[%emt 0:00:
00]} 33. Ke1 {[%emt 0:01:44]} Rb2 {[%emt 0:00:11]} 34. Bd1 {[%emt 0:00:32]} Kf8
{[%emt 0:00:52]} 35. a4 {[%emt 0:00:14]} Ke7 {[%emt 0:00:34]} 36. a5 {[%emt 0:
00:00]} Kd6 {[%emt 0:00:58]} 37. a6 {[%emt 0:00:11]} Kc7 {[%emt 0:00:22]} 38.
a7 {[%emt 0:00:15]} Kd7 {[%emt 0:00:59]} 1-0

[Event "44th Chess Olympiad Women 2022"]
[Site "Chennai"]
[Date "2022.08.08"]
[Round "10.57"]
[White "Blackman, Katrina"]
[Black "Ollet, Myra"]
[Result "1-0"]
[WhiteElo "1691"]
[BlackElo "1480"]
[Annotator "NA RC"]
[PlyCount "131"]
[EventDate "2022.??.??"]
[TimeControl "60"]

1. e3 {[%emt 0:00:03]} Nf6 {[%emt 0:00:53]} 2. f4 {[%emt 0:00:41]} d5 {[%emt 0:
00:00]} 3. Nf3 {[%emt 0:00:14]} Nc6 {[%emt 0:01:53]} 4. Bb5 {[%emt 0:01:45]}
Bd7 {[%emt 0:00:16]} 5. Nc3 {[%emt 0:02:02]} e6 {[%emt 0:00:29]} 6. b3 {
[%emt 0:01:06]} Bd6 {[%emt 0:01:09]} 7. Bb2 {[%emt 0:00:05]} a6 {[%emt 0:01:51]
} 8. Bxc6 {[%emt 0:04:08]} Bxc6 {[%emt 0:00:24]} 9. O-O {[%emt 0:00:02]} Qe7 {
[%emt 0:04:37]} 10. Ne2 {[%emt 0:00:28]} Ba3 {[%emt 0:01:20]} 11. Bd4 {[%emt 0:
00:00]} Bc5 {[%emt 0:01:16]} 12. Ne5 {[%emt 0:03:30]} Bb5 {[%emt 0:01:32]} 13.
d3 {[%emt 0:01:00]} O-O {[%emt 0:03:08]} 14. Rf3 {[%emt 0:05:31]} Nd7 {[%emt 0:
00:00]} 15. Ng4 {[%emt 0:04:01]} Bxd4 {[%emt 0:01:38]} 16. Nxd4 {[%emt 0:00:05]
} c5 {[%emt 0:00:42]} 17. Nxb5 {[%emt 0:00:38]} axb5 {[%emt 0:00:12]} 18. Rg3 {
[%emt 0:00:16]} Kh8 {[%emt 0:00:40]} 19. Qc1 {[%emt 0:03:12]} f5 {[%emt 0:00:
00]} 20. Nf2 {[%emt 0:00:56]} Qf6 {[%emt 0:00:30]} 21. c3 {[%emt 0:04:35]} Rfc8
{[%emt 0:01:40]} 22. Nd1 {[%emt 0:06:14]} Ra6 {[%emt 0:02:14]} 23. Rf3 {
[%emt 0:03:16]} e5 {[%emt 0:01:02]} 24. Rf2 {[%emt 0:00:36]} e4 {[%emt 0:00:57]
} 25. Rd2 {[%emt 0:01:24]} Qh4 {[%emt 0:01:46]} 26. Nf2 {[%emt 0:01:06]} Rh6 {
[%emt 0:00:37]} 27. Nh3 {[%emt 0:00:41]} Nf6 {[%emt 0:02:02]} 28. Qe1 {[%emt 0:
00:00]} Qh5 {[%emt 0:04:05]} 29. dxe4 {[%emt 0:01:13]} fxe4 {[%emt 0:00:29]}
30. Rad1 {[%emt 0:03:00]} c4 {[%emt 0:00:45]} 31. b4 {[%emt 0:00:28]} Rg6 {
[%emt 0:03:17]} 32. Nf2 {[%emt 0:01:35]} Qf3 {[%emt 0:01:19]} 33. Nh1 {[%emt 0:
00:00]} h5 {[%emt 0:01:45]} 34. Qe2 {[%emt 0:03:15]} Qh3 {[%emt 0:00:45]} 35.
Ng3 {[%emt 0:00:09]} Qh4 {[%emt 0:02:07]} 36. Nf5 {[%emt 0:00:19]} Qg4 {
[%emt 0:06:07]} 37. Ne7 {[%emt 0:00:12]} Rd8 {[%emt 0:00:37]} 38. Nxg6+ {
[%emt 0:00:20]} Qxg6 {[%emt 0:00:14]} 39. Qf2 {[%emt 0:02:11]} Qf5 {[%emt 0:00:
00]} 40. Qg3 {[%emt 0:00:34]} Rd7 {[%emt 0:00:58]} 41. Qg5 {[%emt 0:30:31]} g6
{[%emt 0:32:37]} 42. h3 {[%emt 0:00:25]} Kg7 {[%emt 0:00:43]} 43. Kf2 {[%emt 0:
00:00]} Kf7 {[%emt 0:00:26]} 44. Qxf5 {[%emt 0:00:57]} gxf5 {[%emt 0:00:26]}
45. Ra1 {[%emt 0:00:12]} Rd6 {[%emt 0:00:37]} 46. a4 {[%emt 0:00:16]} Rb6 {
[%emt 0:01:17]} 47. axb5 {[%emt 0:01:09]} Rxb5 {[%emt 0:00:21]} 48. Rda2 {
[%emt 0:00:02]} Ne8 {[%emt 0:01:59]} 49. Ra7 {[%emt 0:00:49]} Nd6 {[%emt 0:00:
00]} 50. R1a5 {[%emt 0:00:39]} Rxa5 {[%emt 0:00:47]} 51. Rxa5 {[%emt 0:00:04]}
Ke6 {[%emt 0:00:11]} 52. Ke2 {[%emt 0:01:21]} Ne8 {[%emt 0:01:32]} 53. Ra8 {
[%emt 0:00:34]} Kd7 {[%emt 0:00:28]} 54. Rb8 {[%emt 0:00:41]} Nd6 {[%emt 0:00:
00]} 55. Rh8 {[%emt 0:00:04]} Nb5 {[%emt 0:00:23]} 56. Kd2 {[%emt 0:00:20]} Na3
{[%emt 0:00:13]} 57. Rxh5 {[%emt 0:00:30]} Nb1+ {[%emt 0:00:28]} 58. Kc2 {
[%emt 0:00:02]} Na3+ {[%emt 0:00:15]} 59. Kb2 {[%emt 0:00:31]} Nb5 {[%emt 0:00:
00]} 60. Rxf5 {[%emt 0:00:10]} Ke6 {[%emt 0:00:08]} 61. Rg5 {[%emt 0:02:48]}
Nd6 {[%emt 0:00:06]} 62. Re5+ {[%emt 0:01:11]} Kf6 {[%emt 0:00:28]} 63. g4 {
[%emt 0:00:44]} b5 {[%emt 0:01:19]} 64. Rxd5 {[%emt 0:00:49]} Ke6 {[%emt 0:00:
00]} 65. Rg5 {[%emt 0:00:28]} Nf7 {[%emt 0:00:10]} 66. Rxb5 {[%emt 0:00:03]}
1-0